{"text_format":"1","workbook":"xlsx","n_sheets":5,"sheets":["Contents","Calculate G and r","Working","FullCAM data","Interface settings"],"not_rendered":{"charts":0,"images":1,"macros":1,"external_links":0,"defined_names":15,"comments":0,"pivot_tables":0},"unopened":[],"bounds":{"document_bytes":16777216,"sheet_cells":100000,"rows_first":2000,"rows_last":500,"rows_between":2000,"halvings":0,"cell_chars":16384,"cell_head_chars":4096},"cells_cut":0,"cells_raw":0,"read":"whole","date_system":"1900"}

{"sheet":"Contents","index":0,"n_rows":10,"n_cols":3,"rows_kept":10,"cut":false,"hidden":false,"merged":[]}
[]
[]
[]
[]
[]
[]
[]
[]
["Version","Date","Description"]
[1,"2021-12-23","Version 1"]

{"sheet":"Calculate G and r","index":1,"n_rows":3,"n_cols":9,"rows_kept":3,"cut":false,"hidden":false,"merged":[[0,1,0,5]]}
[null,"Manual G and r calculator for projects registered under the 2022 Plantation Forestry Method"]
[null,"FullCAM-M","Species","State","NPI region","Rotation length",null,"G","r"]
[null,100.458,"Eucalyptus globulus","TAS","Tasmania","Short",null,{"$f":"IF(OR(ISNA(Working!L2),ISNA(Working!M2)),\"\",Working!L2)","v":11.50804130549},{"$f":"IF(OR(ISNA(Working!L2),ISNA(Working!M2)),\"\",Working!M2)","v":5.8140835399461048}]

{"sheet":"Working","index":2,"n_rows":2,"n_cols":13,"rows_kept":2,"cut":false,"hidden":true,"merged":[]}
[null,"aG, bG search record","ar,br search record","M","LTAFPI","ar","br","aG","bG","tyf_rMinPavg","tyf_rMaxPavg","G","r"]
[null,{"$f":"'Calculate G and r'!D3&\":\"&'Calculate G and r'!E3&\":\"&'Calculate G and r'!C3&\":\"&'Calculate G and r'!F3","v":"TAS:Tasmania:Eucalyptus globulus:Short"},{"$f":"'Calculate G and r'!E3&\":\"&\"Hardwood\"&\":\"&'Calculate G and r'!F3","v":"Tasmania:Hardwood:Short"},{"$f":"'Calculate G and r'!B3","v":100.458},{"$f":"((SQRT(D2)+5.2912)/6.0109)^2","v":6.4908633735845847},{"$f":"VLOOKUP(C2,'FullCAM data'!$K$2:$P$65,5,FALSE)","v":3.8620137350000001},{"$f":"VLOOKUP(C2,'FullCAM data'!$K$2:$P$65,6,FALSE)","v":-1.1236824000000001},{"$f":"VLOOKUP(B2,'FullCAM data'!$A$2:$I$96,7,FALSE)","v":13.39661102},{"$f":"VLOOKUP(B2,'FullCAM data'!$A$2:$I$96,6,FALSE)","v":-1.8799594999999999E-2},{"$f":"VLOOKUP(B2,'FullCAM data'!$A$2:$I$96,8,FALSE)","v":4.3},{"$f":"VLOOKUP(B2,'FullCAM data'!$A$2:$I$96,9,FALSE)","v":16.5},{"$f":"$H$2+$I$2*D2","v":11.50804130549},{"$f":"IF(OR(E2<=J2,E2>=K2),1,EXP(F2)*E2^G2)","v":5.8140835399461048}]

{"sheet":"FullCAM data","index":3,"n_rows":96,"n_cols":16,"rows_kept":96,"cut":false,"hidden":true,"merged":[]}
["SEARCH COLUMN","State","NPI","Species","RotationLength","tyf_bg","tyf_ag","tyf_rMinPavg","tyf_rMaxPavg",null,"SEARCH COLUMN","NPI","PlantationType","RotationLength","tyf_ar","tyf_br"]
[{"$f":"B2&\":\"&C2&\":\"&D2&\":\"&E2","v":"ACT:Southern Tablelands:Pinus radiata:Long"},"ACT","Southern Tablelands","Pinus radiata","Long",-2.7098803000000001E-2,15.89189672,4.0999999999999996,13.4,null,{"$f":"L2&\":\"&M2&\":\"&N2","v":"Western Australia:Softwood:Short"},"Western Australia","Softwood","Short",3.3511936549999999,-0.86588569999999998]
[{"$f":"B3&\":\"&C3&\":\"&D3&\":\"&E3","v":"NSW:Murray Valley:Eucalyptus cladocalyx:Long"},"NSW","Murray Valley","Eucalyptus cladocalyx","Long",-2.9657211999999999E-2,17.028836760000001,5.5,14,null,{"$f":"L3&\":\"&M3&\":\"&N3","v":"Western Australia:Softwood:Long"},"Western Australia","Softwood","Long",3.3511936549999999,-0.86588569999999998]
["NSW:Murray Valley:Eucalyptus globulus:Short","NSW","Murray Valley","Eucalyptus globulus","Short",-2.0363301E-2,11.51277784,4.3,14,null,"Western Australia:Hardwood:Short","Western Australia","Hardwood","Short",3.5676986450000001,-1.1236824000000001]
["NSW:Murray Valley:Eucalyptus globulus:Long","NSW","Murray Valley","Eucalyptus globulus","Long",-2.9657211999999999E-2,17.028836760000001,5.5,14,null,"Western Australia:Hardwood:Long","Western Australia","Hardwood","Long",3.8819578450000001,-1.1236824000000001]
["NSW:Murray Valley:Eucalyptus sideroxylon:Long","NSW","Murray Valley","Eucalyptus sideroxylon","Long",-2.9657211999999999E-2,17.028836760000001,5.5,14,null,"Tasmania:Softwood:Short","Tasmania","Softwood","Short",3.3063741850000001,-0.86588569999999998]
["NSW:Murray Valley:Pinus radiata:Long","NSW","Murray Valley","Pinus radiata","Long",-2.1935428999999999E-2,15.48278414,4,14.9,null,"Tasmania:Softwood:Long","Tasmania","Softwood","Long",3.3063741850000001,-0.86588569999999998]
["NSW:Bombala/East Gippsland:Eucalyptus globulus:Short","NSW","Bombala/East Gippsland","Eucalyptus globulus","Short",-1.7483800000000001E-2,11.7523158,5.42,16.100000000000001,null,"Tasmania:Hardwood:Short","Tasmania","Hardwood","Short",3.8620137350000001,-1.1236824000000001]
["NSW:Bombala/East Gippsland:Eucalyptus globulus:Long","NSW","Bombala/East Gippsland","Eucalyptus globulus","Long",-2.08478E-2,16.387727099999999,5.0999999999999996,17.5,null,"Tasmania:Hardwood:Long","Tasmania","Hardwood","Long",4.279536105,-1.1236824000000001]
["NSW:Bombala/East Gippsland:Pinus radiata:Long","NSW","Bombala/East Gippsland","Pinus radiata","Long",-1.8124899999999999E-2,15.679737299999999,5.0999999999999996,17.5,null,"Green Triangle:Softwood:Short","Green Triangle","Softwood","Short",3.467098885,-0.86588569999999998]
["NSW:Southern Tablelands:Eucalyptus cladocalyx:Long","NSW","Southern Tablelands","Eucalyptus cladocalyx","Long",-2.8743100000000001E-2,15.997938,4.5862999999999996,12.5,null,"Green Triangle:Softwood:Long","Green Triangle","Softwood","Long",3.467098885,-0.86588569999999998]
["NSW:Southern Tablelands:Eucalyptus globulus:Short","NSW","Southern Tablelands","Eucalyptus globulus","Short",-2.2994500000000001E-2,12.598350399999999,4.5862999999999996,12.5,null,"Green Triangle:Hardwood:Short","Green Triangle","Hardwood","Short",3.6937613749999998,-1.1236824000000001]
["NSW:Southern Tablelands:Eucalyptus globulus:Long","NSW","Southern Tablelands","Eucalyptus globulus","Long",-2.8743100000000001E-2,15.997938,4.5862999999999996,12.5,null,"Green Triangle:Hardwood:Long","Green Triangle","Hardwood","Long",4.1112837449999997,-1.1236824000000001]
["NSW:Southern Tablelands:Eucalyptus sideroxylon:Long","NSW","Southern Tablelands","Eucalyptus sideroxylon","Long",-2.8743100000000001E-2,15.997938,4.5862999999999996,12.5,null,"Lofty Block:Softwood:Short","Lofty Block","Softwood","Short",3.4986387649999999,-0.86588569999999998]
["NSW:Southern Tablelands:Pinus radiata:Long","NSW","Southern Tablelands","Pinus radiata","Long",-2.7098803000000001E-2,15.89189672,4.0999999999999996,13.4,null,"Lofty Block:Softwood:Long","Lofty Block","Softwood","Long",3.4986387649999999,-0.86588569999999998]
["NSW:Central Tablelands:Eucalyptus cladocalyx:Long","NSW","Central Tablelands","Eucalyptus cladocalyx","Long",-3.9604300000000002E-2,17.577776400000001,4.3,13.5,null,"Lofty Block:Hardwood:Short","Lofty Block","Hardwood","Short",3.754509305,-1.1236824000000001]
["NSW:Central Tablelands:Eucalyptus globulus:Short","NSW","Central Tablelands","Eucalyptus globulus","Short",-3.16834E-2,13.8622212,4.0999999999999996,13.4,null,"Lofty Block:Hardwood:Long","Lofty Block","Hardwood","Long",4.1720316750000004,-1.1236824000000001]
["NSW:Central Tablelands:Eucalyptus globulus:Long","NSW","Central Tablelands","Eucalyptus globulus","Long",-3.9604300000000002E-2,17.577776400000001,4.3,13.5,null,"Central Victoria:Softwood:Short","Central Victoria","Softwood","Short",3.3535234250000001,-0.86588569999999998]
["NSW:Central Tablelands:Eucalyptus sideroxylon:Long","NSW","Central Tablelands","Eucalyptus sideroxylon","Long",-3.9604300000000002E-2,17.577776400000001,4.3,13.5,null,"Central Victoria:Softwood:Long","Central Victoria","Softwood","Long",3.3535234250000001,-0.86588569999999998]
["NSW:Central Tablelands:Pinus radiata:Long","NSW","Central Tablelands","Pinus radiata","Long",-2.7358400000000001E-2,16.032438200000001,4.3,13.5,null,"Central Victoria:Hardwood:Short","Central Victoria","Hardwood","Short",3.7063132649999999,-1.1236824000000001]
["NSW:Northern Tablelands:Eucalyptus cladocalyx:Long","NSW","Northern Tablelands","Eucalyptus cladocalyx","Long",-2.33235E-2,16.8663624,8,17.100000000000001,null,"Central Victoria:Hardwood:Long","Central Victoria","Hardwood","Long",4.1238356349999998,-1.1236824000000001]
["NSW:Northern Tablelands:Eucalyptus globulus:Short","NSW","Northern Tablelands","Eucalyptus globulus","Short",-1.35061E-2,10.8243069,3.7,17.100000000000001,null,"Murray Valley:Softwood:Short","Murray Valley","Softwood","Short",3.3304454450000001,-0.86588569999999998]
["NSW:Northern Tablelands:Eucalyptus globulus:Long","NSW","Northern Tablelands","Eucalyptus globulus","Long",-2.33235E-2,16.866362299999999,8,17.100000000000001,null,"Murray Valley:Softwood:Long","Murray Valley","Softwood","Long",3.3304454450000001,-0.86588569999999998]
["NSW:Northern Tablelands:Eucalyptus sideroxylon:Long","NSW","Northern Tablelands","Eucalyptus sideroxylon","Long",-2.33235E-2,16.8663624,8,17.100000000000001,null,"Murray Valley:Hardwood:Short","Murray Valley","Hardwood","Short",3.633206645,-1.1236824000000001]
["NSW:Northern Tablelands:Pinus radiata:Long","NSW","Northern Tablelands","Pinus radiata","Long",-1.8092500000000001E-2,15.719218100000001,5.2,17.600000000000001,null,"Murray Valley:Hardwood:Long","Murray Valley","Hardwood","Long",4.0507290149999999,-1.1236824000000001]
["NSW:North Coast:Corymbia variegata:Long","NSW","North Coast","Corymbia variegata","Long",-2.1056097999999999E-2,21.003611509999999,9,21.2,null,"Central Gippsland:Softwood:Short","Central Gippsland","Softwood","Short",3.304901825,-0.86588569999999998]
["NSW:North Coast:Eucalyptus dunnii:Long","NSW","North Coast","Eucalyptus dunnii","Long",-2.1056097999999999E-2,21.003611509999999,9,21.2,null,"Central Gippsland:Softwood:Long","Central Gippsland","Softwood","Long",3.304901825,-0.86588569999999998]
["NSW:North Coast:Eucalyptus grandis:Long","NSW","North Coast","Eucalyptus grandis","Long",-2.1056097999999999E-2,21.003611509999999,9,21.2,null,"Central Gippsland:Hardwood:Short","Central Gippsland","Hardwood","Short",3.487875845,-1.1236824000000001]
["NSW:North Coast:Eucalyptus pilularis:Long","NSW","North Coast","Eucalyptus pilularis","Long",-2.1056097999999999E-2,21.003611509999999,9,21.2,null,"Central Gippsland:Hardwood:Long","Central Gippsland","Hardwood","Long",3.905398215,-1.1236824000000001]
["NSW:North Coast:Pinus elliottii:Long","NSW","North Coast","Pinus elliottii","Long",-1.2667766E-2,16.79844464,7.1254,23.3,null,"Bombala/East Gippsland:Softwood:Short","Bombala/East Gippsland","Softwood","Short",3.213712535,-0.86588569999999998]
["NSW:North Coast:Pinus taeda:Long","NSW","North Coast","Pinus taeda","Long",-1.2667766E-2,16.79844464,7.1254,23.3,null,"Bombala/East Gippsland:Softwood:Long","Bombala/East Gippsland","Softwood","Long",3.213712535,-0.86588569999999998]
["NT:Northern Territory:Acacia mangium:Short","NT","Northern Territory","Acacia mangium","Short",-1.270948E-2,6.2527099230000003,5.35,12,null,"Bombala/East Gippsland:Hardwood:Short","Bombala/East Gippsland","Hardwood","Short",3.6515414449999999,-1.1236824000000001]
["NT:Northern Territory:Acacia mangium:Long","NT","Northern Territory","Acacia mangium","Long",-1.270948E-2,6.2527099230000003,5.35,12,null,"Bombala/East Gippsland:Hardwood:Long","Bombala/East Gippsland","Hardwood","Long",4.0690638149999998,-1.1236824000000001]
["NT:Northern Territory:Callitris intratropica:Long","NT","Northern Territory","Callitris intratropica","Long",-4.8812899999999999E-2,25.5722524,6,12,null,"Southern Tablelands:Softwood:Short","Southern Tablelands","Softwood","Short",3.3230926850000002,-0.86588569999999998]
["NT:Northern Territory:Pinus carribaea var. hondurensis:Long","NT","Northern Territory","Pinus carribaea var. hondurensis","Long",-6.8338098E-2,23.801153379999999,6,12,null,"Southern Tablelands:Softwood:Long","Southern Tablelands","Softwood","Long",3.3230926850000002,-0.86588569999999998]
["Qld:South East Queensland:Araucaria cunninghamii:Long","Qld","South East Queensland","Araucaria cunninghamii","Long",-1.5904841999999999E-2,18.207986080000001,7,22.6,null,"Central Tablelands:Softwood:Short","Central Tablelands","Softwood","Short",3.247463035,-0.86588569999999998]
["Qld:South East Queensland:Corymbia citriodora var variegata:Long","Qld","South East Queensland","Corymbia citriodora var variegata","Long",-1.7913034000000001E-2,17.40598863,9,21,null,"Central Tablelands:Softwood:Long","Central Tablelands","Softwood","Long",3.247463035,-0.86588569999999998]
["Qld:South East Queensland:Eucalyptus argophloia:Long","Qld","South East Queensland","Eucalyptus argophloia","Long",-1.7913034000000001E-2,17.40598863,9,21,null,"Northern Tablelands:Softwood:Short","Northern Tablelands","Softwood","Short",3.1412907350000001,-0.86588569999999998]
["Qld:South East Queensland:Eucalyptus cloeziana:Short","Qld","South East Queensland","Eucalyptus cloeziana","Short",-9.8007939999999998E-3,10.88538554,5,22,null,"Northern Tablelands:Softwood:Long","Northern Tablelands","Softwood","Long",3.1412907350000001,-0.86588569999999998]
["Qld:South East Queensland:Eucalyptus cloeziana:Long","Qld","South East Queensland","Eucalyptus cloeziana","Long",-1.7913034000000001E-2,17.40598863,9,21,null,"Northern Tablelands:Hardwood:Short","Northern Tablelands","Hardwood","Short",3.6013925449999999,-1.1236824000000001]
["Qld:South East Queensland:Eucalyptus dunnii:Long","Qld","South East Queensland","Eucalyptus dunnii","Long",-1.7913034000000001E-2,17.40598863,9,21,null,"Northern Tablelands:Hardwood:Long","Northern Tablelands","Hardwood","Long",4.0189149149999999,-1.1236824000000001]
["Qld:South East Queensland:Eucalyptus pilularis:Long","Qld","South East Queensland","Eucalyptus pilularis","Long",-1.7913034000000001E-2,17.40598863,9,21,null,"North Coast:Softwood:Short","North Coast","Softwood","Short",3.0717646350000001,-0.86588569999999998]
["Qld:South East Queensland:Pinus carribaea var. hondurensis:Long","Qld","South East Queensland","Pinus carribaea var. hondurensis","Long",-1.1809371000000001E-2,16.094443070000001,5.0999999999999996,22.6,null,"North Coast:Softwood:Long","North Coast","Softwood","Long",3.0717646350000001,-0.86588569999999998]
["Qld:South East Queensland:Pinus elliottii:Long","Qld","South East Queensland","Pinus elliottii","Long",-1.1809371000000001E-2,16.094443070000001,5.0999999999999996,22.6,null,"North Coast:Hardwood:Short","North Coast","Hardwood","Short",3.7221382250000001,-1.1236824000000001]
["Qld:South East Queensland:Pinus hybrids:Long","Qld","South East Queensland","Pinus hybrids","Long",-1.1809371000000001E-2,16.094443070000001,5.0999999999999996,22.6,null,"North Coast:Hardwood:Long","North Coast","Hardwood","Long",4.1396605949999996,-1.1236824000000001]
["Qld:Northern Queensland:Araucaria cunninghamii:Long","Qld","Northern Queensland","Araucaria cunninghamii","Long",-1.1767244E-2,17.2580603,5.7,26,null,"South East Queensland:Softwood:Short","South East Queensland","Softwood","Short",3.111554935,-0.86588569999999998]
["Qld:Northern Queensland:Corymbia citriodora var variegata:Long","Qld","Northern Queensland","Corymbia citriodora var variegata","Long",-1.6371950999999999E-2,17.1129666,9,21.9,null,"South East Queensland:Softwood:Long","South East Queensland","Softwood","Long",3.111554935,-0.86588569999999998]
["Qld:Northern Queensland:Eucalyptus argophloia:Long","Qld","Northern Queensland","Eucalyptus argophloia","Long",-1.6371950999999999E-2,17.1129666,9,21.9,null,"South East Queensland:Hardwood:Short","South East Queensland","Hardwood","Short",3.748189445,-1.1236824000000001]
["Qld:Northern Queensland:Eucalyptus cloeziana:Short","Qld","Northern Queensland","Eucalyptus cloeziana","Short",-1.0229522E-2,11.06914344,5.6,21.9,null,"South East Queensland:Hardwood:Long","South East Queensland","Hardwood","Long",4.1657118149999999,-1.1236824000000001]
["Qld:Northern Queensland:Eucalyptus cloeziana:Long","Qld","Northern Queensland","Eucalyptus cloeziana","Long",-1.6371950999999999E-2,17.1129666,9,21.9,null,"Northern Queensland:Softwood:Short","Northern Queensland","Softwood","Short",3.1522487350000001,-0.86588569999999998]
["Qld:Northern Queensland:Eucalyptus dunnii:Long","Qld","Northern Queensland","Eucalyptus dunnii","Long",-1.6371950999999999E-2,17.1129666,9,21.9,null,"Northern Queensland:Softwood:Long","Northern Queensland","Softwood","Long",3.1522487350000001,-0.86588569999999998]
["Qld:Northern Queensland:Eucalyptus pilularis:Long","Qld","Northern Queensland","Eucalyptus pilularis","Long",-1.6371950999999999E-2,17.1129666,9,21.9,null,"Northern Queensland:Hardwood:Short","Northern Queensland","Hardwood","Short",3.7134754449999998,-1.1236824000000001]
["Qld:Northern Queensland:Pinus carribaea var. hondurensis:Long","Qld","Northern Queensland","Pinus carribaea var. hondurensis","Long",-9.8060370000000001E-3,16.04838359,5.7,26,null,"Northern Queensland:Hardwood:Long","Northern Queensland","Hardwood","Long",4.1309978149999997,-1.1236824000000001]
["Qld:Northern Queensland:Pinus elliottii:Long","Qld","Northern Queensland","Pinus elliottii","Long",-9.8060370000000001E-3,16.04838359,5.7,26,null,"Northern Territory:Hardwood:Short","Northern Territory","Hardwood","Short",3.4174851450000001,-1.1236824000000001]
["Qld:Northern Queensland:Pinus hybrids:Long","Qld","Northern Queensland","Pinus hybrids","Long",-9.8060370000000001E-3,16.04838359,5.7,26,null,"Northern Territory:Hardwood:Long","Northern Territory","Hardwood","Long",3.835007515,-1.1236824000000001]
["SA:Green Triangle:Eucalyptus globulus:Short","SA","Green Triangle","Eucalyptus globulus","Short",-2.3985159999999998E-2,11.516006750000001,3.8,12.5]
["SA:Green Triangle:Eucalyptus globulus:Long","SA","Green Triangle","Eucalyptus globulus","Long",-4.82712E-2,19.101213000000001,6.5,12.5,null,"From AR EE TYF State"]
["SA:Green Triangle:Pinus radiata:Long","SA","Green Triangle","Pinus radiata","Long",-2.8770062999999998E-2,14.69381081,3.6,12.6,null,"Southern Tablelands:Hardwood:Short",null,null,null,3.6638735750000002,-1.1267699]
["SA:Lofty Block:Eucalyptus globulus:Short","SA","Lofty Block","Eucalyptus globulus","Short",-2.6996642000000001E-2,11.41723732,3.3,11.4,null,"Central Tablelands:Hardwood:Short",null,null,null,3.6638735750000002,-1.1267699]
["SA:Lofty Block:Pinus radiata:Long","SA","Lofty Block","Pinus radiata","Long",-3.5459130999999998E-2,16.396955070000001,4,11.7]
["Tas:Tasmania:Eucalyptus globulus:Short","Tas","Tasmania","Eucalyptus globulus","Short",-1.8799594999999999E-2,13.39661102,4.3,16.5]
["Tas:Tasmania:Eucalyptus globulus:Long","Tas","Tasmania","Eucalyptus globulus","Long",-2.6683868999999999E-2,17.70438218,5.5,16.5]
["Tas:Tasmania:Eucalyptus nitens:Short","Tas","Tasmania","Eucalyptus nitens","Short",-1.8799594999999999E-2,13.39661102,4.3,16.5]
["Tas:Tasmania:Eucalyptus nitens:Long","Tas","Tasmania","Eucalyptus nitens","Long",-2.0997426E-2,16.14442867,5.5,16.5]
["Tas:Tasmania:Pinus radiata:Long","Tas","Tasmania","Pinus radiata","Long",-1.8602525000000002E-2,15.381970750000001,4.3,16.600000000000001]
["Vic:Green Triangle:Eucalyptus globulus:Short","Vic","Green Triangle","Eucalyptus globulus","Short",-2.3985159999999998E-2,11.516006750000001,3.8,12.5]
[{"$f":"B67&\":\"&C67&\":\"&D67&\":\"&E67","v":"Vic:Green Triangle:Eucalyptus globulus:Long"},"Vic","Green Triangle","Eucalyptus globulus","Long",-4.82712E-2,19.101213000000001,6.5,12.5]
["Vic:Green Triangle:Pinus radiata:Long","Vic","Green Triangle","Pinus radiata","Long",-2.8770062999999998E-2,14.69381081,3.6,12.6]
["Vic:Central Victoria:Eucalyptus cladocalyx:Long","Vic","Central Victoria","Eucalyptus cladocalyx","Long",-2.5851648000000001E-2,16.64018145,5.5,14.9]
["Vic:Central Victoria:Eucalyptus globulus:Short","Vic","Central Victoria","Eucalyptus globulus","Short",-1.8456660999999999E-2,11.45467118,4.5,14.9]
["Vic:Central Victoria:Eucalyptus globulus:Long","Vic","Central Victoria","Eucalyptus globulus","Long",-2.5851648000000001E-2,16.64018145,5.5,14.9]
["Vic:Central Victoria:Eucalyptus nitens:Short","Vic","Central Victoria","Eucalyptus nitens","Short",-1.8205900000000001E-2,12.431057900000001,4.9907000000000004,14.5]
["Vic:Central Victoria:Eucalyptus nitens:Long","Vic","Central Victoria","Eucalyptus nitens","Long",-2.6455699999999999E-2,16.892079800000001,6.3,14.5]
["Vic:Central Victoria:Pinus radiata:Long","Vic","Central Victoria","Pinus radiata","Long",-1.7326606000000001E-2,15.28718353,4.3,17.3]
["Vic:Murray Valley:Eucalyptus cladocalyx:Long","Vic","Murray Valley","Eucalyptus cladocalyx","Long",-2.9657211999999999E-2,17.028836760000001,5.5,14]
["Vic:Murray Valley:Eucalyptus globulus:Short","Vic","Murray Valley","Eucalyptus globulus","Short",-2.0363301E-2,11.51277784,4.3,14]
["Vic:Murray Valley:Eucalyptus globulus:Long","Vic","Murray Valley","Eucalyptus globulus","Long",-2.9657211999999999E-2,17.028836760000001,5.5,14]
["Vic:Murray Valley:Eucalyptus nitens:Short","Vic","Murray Valley","Eucalyptus nitens","Short",-2.29964E-2,13.348583700000001,6,13.694699999999999]
["Vic:Murray Valley:Eucalyptus nitens:Long","Vic","Murray Valley","Eucalyptus nitens","Long",-2.87455E-2,16.935729599999998,6,13.694699999999999]
["Vic:Murray Valley:Pinus radiata:Long","Vic","Murray Valley","Pinus radiata","Long",-2.1935428999999999E-2,15.48278414,4,14.9]
["Vic:Central Gippsland:Eucalyptus globulus:Short","Vic","Central Gippsland","Eucalyptus globulus","Short",-1.4781757E-2,11.61590736,5.8,17.899999999999999]
["Vic:Central Gippsland:Eucalyptus globulus:Long","Vic","Central Gippsland","Eucalyptus globulus","Long",-2.4069492000000001E-2,15.213142599999999,8,18]
["Vic:Central Gippsland:Eucalyptus nitens:Short","Vic","Central Gippsland","Eucalyptus nitens","Short",-1.4891069999999999E-2,11.69989404,5.8,17.899999999999999]
["Vic:Central Gippsland:Eucalyptus nitens:Long","Vic","Central Gippsland","Eucalyptus nitens","Long",-1.8299793000000002E-2,13.00465958,8,18]
["Vic:Central Gippsland:Eucalyptus regnans:Long","Vic","Central Gippsland","Eucalyptus regnans","Long",-2.5785471000000001E-2,21.94354714,6,18.100000000000001]
["Vic:Central Gippsland:Pinus radiata:Long","Vic","Central Gippsland","Pinus radiata","Long",-1.7882230999999998E-2,15.998020009999999,5.9,18.3]
["Vic:Bombala/East Gippsland:Eucalyptus globulus:Short","Vic","Bombala/East Gippsland","Eucalyptus globulus","Short",-1.7483800000000001E-2,11.7523158,5.42,16.100000000000001]
["Vic:Bombala/East Gippsland:Eucalyptus globulus:Long","Vic","Bombala/East Gippsland","Eucalyptus globulus","Long",-2.08478E-2,16.387727099999999,5.0999999999999996,17.5]
["Vic:Bombala/East Gippsland:Eucalyptus nitens:Short","Vic","Bombala/East Gippsland","Eucalyptus nitens","Short",-1.6678200000000001E-2,13.910181700000001,6.5155000000000003,16.5]
["Vic:Bombala/East Gippsland:Eucalyptus nitens:Long","Vic","Bombala/East Gippsland","Eucalyptus nitens","Long",-2.08478E-2,16.387727099999999,5.2,17.600000000000001]
["Vic:Bombala/East Gippsland:Pinus radiata:Long","Vic","Bombala/East Gippsland","Pinus radiata","Long",-1.8124899999999999E-2,15.679737299999999,5.0999999999999996,17.5]
["WA:Western Australia:Eucalyptus globulus:Short","WA","Western Australia","Eucalyptus globulus","Short",-1.5425638E-2,8.7138690350000001,3,12.9]
["WA:Western Australia:Eucalyptus Oil Mallee:Long","WA","Western Australia","Eucalyptus Oil Mallee","Long",-5.6969400000000003E-2,10.1465055,20,20]
["WA:Western Australia:Eucalyptus saligna:Long","WA","Western Australia","Eucalyptus saligna","Long",-2.8874725E-2,13.951864479999999,4,12.9]
["WA:Western Australia:Pinus pinaster:Long","WA","Western Australia","Pinus pinaster","Long",-5.1762215E-2,18.18587789,2.8,9]
["WA:Western Australia:Pinus radiata:Long","WA","Western Australia","Pinus radiata","Long",-3.2397598E-2,15.190002529999999,4,12.2]

{"sheet":"Interface settings","index":4,"n_rows":6,"n_cols":15,"rows_kept":6,"cut":false,"hidden":true,"merged":[]}
["Species:","GlobulusState","NitensState","mangiumState","CloezianaState",null,"GlobulusNSW","GlobulusSA","GlobulusTAS","GlobulusVIC","GlobulusWA","NitensTAS","NitensVIC","MangiumNT","CloezianaQLD"]
["Eucalyptus globulus","NSW","TAS","NT","QLD",null,"Murray Valley","Green Triangle","Tasmania","Green Triangle","Western Australia","Tasmania","Central Victoria","Northern Territory","South East Queensland"]
["Eucalyptus nitens","SA","VIC",null,null,null,"Bombala/East Gippsland","Lofty Block",null,"Central Victoria",null,null,"Murray Valley",null,"Northern Queensland"]
["Acacia mangium","TAS",null,null,null,null,"Southern Tablelands",null,null,"Murray Valley",null,null,"Central Gippsland"]
["Eucalyptus cloeziana","VIC",null,null,null,null,"Central Tablelands",null,null,"Central Gippsland",null,null,"Bombala/East Gippsland"]
[null,"WA",null,null,null,null,"Northern Tablelands",null,null,"Bombala/East Gippsland"]